bitfinex/quotes_BTCUSD_20220405
["timestamp","ask_amount","ask_price","bid_price","bid_amount"]
[1649162371177,2.506297,47041.0,47033.0,0.00245386]
[1649162371278,0.319239,47040.0,47028.0,0.00348905]
[1649162371381,0.2072144,47037.0,47028.0,0.00348905]
[1649162371483,0.619239,47036.0,47028.0,0.00348905]
[1649162371729,0.319239,47034.0,47028.0,0.00348905]
[1649162371883,0.319239,47032.0,47028.0,0.00348905]
[1649162372179,0.67211346,47033.0,47028.0,0.00348905]
[1649162372381,0.3677652,47029.0,47028.0,0.00348905]
[1649162372681,0.28410766,47032.0,47028.0,0.00348905]
[1649162372880,0.18581642,47031.0,47028.0,0.00348905]
[1649162372985,0.053159,47029.0,47026.0,0.00848905]
[1649162373081,0.159471,47029.0,47026.0,0.00848905]
[1649162373282,0.319239,47028.0,47026.0,0.00848905]
[1649162373389,0.106312,47029.0,47026.0,0.00848905]
[1649162373484,0.28410766,47032.0,47026.0,0.00848905]
[1649162373641,0.3,47031.0,47026.0,0.00848905]
[1649162373725,0.3,47031.0,47014.0,0.41201777]
[1649162373726,2.3,47030.0,47014.0,0.41201777]
[1649162373826,2.3,47030.0,47018.0,0.01063]
[1649162373927,0.01063,47029.0,47019.0,0.31515233]
[1649162374027,0.01063,47030.0,47019.0,0.31515233]
[1649162374174,0.15821071,47029.0,47019.0,0.31515233]
[1649162374479,0.21136671,47029.0,47019.0,0.31515233]
[1649162374584,0.053152,47027.0,47019.0,0.31515233]
[1649162374928,0.053152,47027.0,47016.0,0.31515233]
[1649162375128,0.053152,47027.0,47021.0,0.00061355]
[1649162375528,0.053152,47027.0,47016.0,0.31515233]
[1649162375529,0.319239,47026.0,47016.0,0.31076588]
[1649162375630,1.253152,47027.0,47017.0,0.01063]
[1649162375727,0.619239,47026.0,47016.0,0.31076588]
[1649162375829,0.3,47026.0,47016.0,0.31076588]
[1649162375929,0.053158,47024.0,47016.0,0.31076588]
[1649162376830,0.053158,47024.0,47014.0,0.28385446]
[1649162376933,0.41039308,47024.0,47014.0,0.28385446]
[1649162377086,0.3,47023.0,47013.0,0.01064]
[1649162377180,0.3,47023.0,47011.0,0.01]
[1649162377181,0.053161,47021.0,47012.0,0.01064]
[1649162377491,0.3,47020.0,47012.0,0.01064]
[1649162377591,0.35723508,47024.0,47012.0,0.01064]
[1649162377592,0.03085514,47013.0,47012.0,0.01064]
[1649162377690,0.65009414,47013.0,47011.0,0.01]
[1649162377838,0.5981194,47012.0,47011.0,0.01]
[1649162378245,0.2788804,47012.0,47011.0,0.01]
[1649162378340,0.5981194,47012.0,47011.0,0.01]
[1649162378440,0.2788804,47012.0,47011.0,0.01]
[1649162378541,0.10635,47013.0,47011.0,0.01]
[1649162378741,0.053175,47013.0,47011.0,0.01]
[1649162378842,0.053172,47014.0,47011.0,0.01]
[1649162379341,0.353172,47014.0,47011.0,0.01]
[1649162379445,0.619239,47013.0,47011.0,0.01]
[1649162379543,0.90816867,47012.0,47011.0,0.01]
[1649162379648,0.60816867,47012.0,47011.0,0.01]
[1649162380397,0.90816867,47012.0,47011.0,0.01]
[1649162380502,0.60816867,47012.0,47011.0,0.01]
[1649162380603,0.90816867,47012.0,47011.0,0.01]
[1649162380896,0.319239,47011.0,47006.0,0.05318]
[1649162380997,1.47879346,47011.0,47006.0,0.05318]
[1649162381136,1.47879346,47011.0,47009.0,0.00061365]
[1649162381137,0.358239,47010.0,47009.0,0.00061365]
[1649162381238,0.658239,47010.0,47009.0,0.00061365]
[1649162381340,0.758239,47010.0,47009.0,0.00061365]
[1649162381942,0.811422,47010.0,47009.0,0.00061365]
[1649162382194,0.811422,47010.0,47006.0,0.05318]
[1649162382195,0.053183,47009.0,47006.0,0.05318]
[1649162382291,0.319239,47008.0,47006.0,0.05318]
[1649162382396,0.039,47008.0,47006.0,0.05318]
[1649162382494,0.092178,47008.0,47006.0,0.05318]
[1649162382989,0.319239,47007.0,47006.0,0.05318]
[1649162383189,0.092178,47008.0,47006.0,0.05318]
[1649162383290,0.319239,47007.0,47006.0,0.05318]
[1649162385327,0.053169,47011.0,47006.0,0.05318]
[1649162385426,0.319239,47010.0,47006.0,0.05318]
[1649162385930,0.319239,47010.0,47006.0,0.05379368]
[1649162386431,0.039,47012.0,47006.0,0.05379368]
[1649162386535,0.01063,47015.0,47006.0,0.05379368]
[1649162386682,0.24238643,47018.0,47012.0,0.23450243]
[1649162386780,0.106323,47023.0,47009.0,0.24582325]
[1649162386978,0.106323,47023.0,47006.0,0.05318]
[1649162387081,0.329869,47022.0,47007.0,0.01064]
[1649162387181,0.329869,47022.0,47007.0,0.01125369]
[1649162387182,0.6533,47020.0,47007.0,0.01125369]
[1649162387286,0.319239,47016.0,47007.0,0.01125369]
[1649162387379,0.3,47015.0,47007.0,0.00061369]
[1649162387531,0.05318559,47013.0,47007.0,0.00061369]
[1649162387631,0.619239,47012.0,47007.0,0.00061369]
[1649162387730,0.669239,47012.0,47007.0,0.00061369]
[1649162387831,0.24576582,47011.0,47007.0,0.00061369]
[1649162387932,0.92912533,47010.0,47007.0,0.00061369]
[1649162388131,0.72912533,47010.0,47006.0,0.05318]
[1649162388231,0.3761975,47008.0,47006.0,0.05318]
[1649162388332,0.319239,47007.0,47006.0,0.05318]
[1649162388433,0.619239,47007.0,47006.0,0.05360128]
[1649162388681,0.372426,47007.0,47006.0,0.05360128]
[1649162388782,0.319239,47007.0,47006.0,0.05360128]
[1649162389380,0.319239,47007.0,47006.0,0.05318]
[1649162389983,0.619239,47007.0,47006.0,0.05318]
[1649162390683,1.29007886,47007.0,47006.0,0.05318]
[1649162390783,0.99007886,47007.0,47006.0,0.05318]
[1649162390882,1.39007886,47007.0,47006.0,0.05318]
[1649162390982,1.44007886,47007.0,47006.0,0.05318]
[1649162391182,1.39007886,47007.0,47006.0,0.05318]
[1649162391282,2.04337886,47007.0,47006.0,0.05318]
[1649162391484,2.0431834,47007.0,47006.0,0.05318]
[1649162392286,2.0821834,47007.0,47006.0,0.05318]
[1649162392505,3.1321834,47007.0,47006.0,0.05318]
[1649162392901,0.972539,47005.0,46986.0,0.01064]
[1649162393008,0.053195,47003.0,46986.0,0.01064]
[1649162393103,0.319272,47001.0,46997.0,0.01064]
[1649162393204,0.3,47000.0,46983.0,0.33900984]
[1649162393304,0.3,47000.0,46995.0,0.0024492]
[1649162393305,0.319272,46999.0,46995.0,0.0024492]
[1649162393405,0.972572,46997.0,46995.0,0.0024492]
[1649162393555,1.311572,46997.0,46996.0,0.005]
[1649162393659,2.19071785,46997.0,46996.0,0.005]
[1649162393756,2.29071785,46997.0,46996.0,0.005]
[1649162393857,3.272572,46996.0,46995.0,0.0024492]
[1649162393955,4.272572,46996.0,46995.0,0.0024492]
[1649162394055,4.422572,46996.0,46995.0,4.92e-05]
[1649162394158,4.461572,46996.0,46995.0,4.92e-05]
[1649162394256,0.15961,46993.0,46982.0,0.01064]
[1649162394356,0.15961,46993.0,46981.0,0.01]
[1649162394357,1.619272,46992.0,46981.0,0.01]
[1649162394458,0.319272,46990.0,46981.0,0.01]
[1649162394609,0.319272,46988.0,46981.0,0.01]
[1649162394711,0.21811871,46983.0,46982.0,0.01064]
[1649162394861,1.53739071,46983.0,46981.0,0.01]
[1649162394963,0.3,46982.0,46981.0,0.01]
[1649162395061,0.21811871,46983.0,46981.0,0.01]
[1649162395365,0.319272,46982.0,46981.0,0.01]
[1649162395511,0.21811871,46983.0,46981.0,0.01]
[1649162395610,0.319272,46982.0,46981.0,0.01]
[1649162396152,0.32453971,46983.0,46981.0,0.01]
[1649162396353,0.319272,46982.0,46981.0,0.005]
[1649162396455,0.32453971,46983.0,46981.0,0.005]
[1649162396554,1.039,46982.0,46981.0,0.005]
[1649162396653,0.358272,46982.0,46981.0,0.005]
[1649162396758,2.04387515,46982.0,46981.0,0.005]
[1649162396855,2.04387515,46982.0,46974.0,0.03]
[1649162396856,2.14387515,46982.0,46974.0,0.03]
[1649162396956,1.05321657,46981.0,46974.0,0.03]
[1649162397056,1.319272,46980.0,46974.0,0.03]
[1649162397156,1.3,46979.0,46974.0,0.03]
[1649162397257,0.319272,46978.0,46974.0,0.03]
[1649162397358,0.053217,46978.0,46974.0,0.03]
[1649162397609,0.039,46983.0,46974.0,0.03]
[1649162397857,0.3,46982.0,46974.0,0.03]
[1649162397960,0.319272,46981.0,46974.0,0.03061245]
[1649162398360,0.372486,46981.0,46974.0,0.03061245]
[1649162398758,0.053216,46980.0,46974.0,0.03061245]
[1649162398858,0.319272,46979.0,46974.0,0.00061245]
[1649162398962,0.319272,46979.0,46972.0,0.01064]
[1649162399063,0.319272,46979.0,46974.0,0.03010402]
[1649162399159,0.142216,46980.0,46975.0,0.0014757]
[1649162399613,0.6533,46978.0,46975.0,0.0014757]
[1649162399761,0.05,46978.0,46975.0,0.0014757]
[1649162399885,0.103219,46978.0,46976.0,0.01064]
[1649162399975,0.103219,46978.0,46975.0,0.0014757]
[1649162400083,0.319272,46977.0,46975.0,0.0014757]
[1649162400231,0.319272,46977.0,46975.0,0.00090636]
[1649162400978,0.053219,46978.0,46975.0,0.00090636]
[1649162401078,0.039,46980.0,46975.0,0.00090636]
[1649162401179,0.319272,46979.0,46975.0,0.00090636]
[1649162401579,0.319272,46979.0,46975.0,0.0014757]
[1649162401879,0.039,46980.0,46975.0,0.0014757]
[1649162401982,0.329912,46979.0,46978.0,0.22740675]
[1649162402084,0.329912,46979.0,46978.0,0.52409155]
[1649162402181,0.319272,46979.0,46978.0,0.51909155]
[1649162402333,0.319272,46979.0,46978.0,0.2966848]
[1649162402532,0.319272,46979.0,46978.0,0.2956698]
[1649162402932,0.319272,46979.0,46976.0,0.00056933]
[1649162403034,0.01064,46986.0,46976.0,0.00056933]
[1649162403132,0.319272,46985.0,46976.0,0.00056933]
[1649162403233,0.29868283,46985.0,46976.0,0.00056933]
[1649162403334,0.29868283,46985.0,46979.0,0.2271533]
[1649162403876,0.29868283,46985.0,46984.0,0.29645249]
[1649162403976,0.29868283,46985.0,46980.0,0.00057221]
[1649162404178,0.01064,46990.0,46980.0,0.00057221]
[1649162404480,0.01064,46990.0,46985.0,0.08233642]
[1649162404579,0.01064,46992.0,46989.0,0.08233642]
[1649162404681,0.00057199,46997.0,46980.0,0.00057221]
[1649162404682,0.01064,46996.0,46980.0,0.00057221]
[1649162404827,0.01064,46996.0,46981.0,0.020978]
[1649162404928,0.01064,46996.0,46992.0,0.25651284]
[1649162405027,0.00057199,46997.0,46992.0,0.25651284]
[1649162405028,0.01064,46997.0,46992.0,0.25651284]
[1649162405129,0.01064,46997.0,46993.0,0.22805087]
[1649162405328,0.01121202,46997.0,46993.0,0.22805087]
[1649162405430,0.053184,47005.0,46993.0,0.22805087]
[1649162405431,0.01064,46996.0,46993.0,0.22805087]
[1649162405528,0.05318,47002.0,46993.0,0.22805087]
[1649162406331,0.319273,47001.0,46993.0,0.22805087]
[1649162407182,0.319273,47001.0,46993.0,0.27805087]
[1649162407283,0.319273,47001.0,46986.0,0.01064]
[1649162407398,0.319273,46997.0,46986.0,0.01064]
[1649162407596,0.319273,46997.0,46994.0,0.00037801]
[1649162407698,0.319273,46997.0,46986.0,0.31064]
[1649162407699,0.00075602,46993.0,46986.0,0.01064]
[1649162407855,0.00075602,46993.0,46983.0,0.00151239]
[1649162408398,0.319273,46992.0,46986.0,0.21]
[1649162408500,0.053197,46990.0,46986.0,0.21]
[1649162408701,0.319273,46989.0,46986.0,0.21]
[1649162408798,0.319273,46988.0,46986.0,0.21]
[1649162408899,0.319273,46989.0,46980.0,0.23713274]
[1649162409001,0.053197,46990.0,46980.0,0.23713274]
[1649162409202,2.05,46992.0,46980.0,0.23713274]
[1649162409303,0.319273,46991.0,46979.0,0.01064]
[1649162409402,0.28982241,46983.0,46979.0,0.01064]
[1649162409508,2.05,46992.0,46979.0,0.01064]
[1649162409604,0.319273,46991.0,46979.0,0.31064]
[1649162409755,0.319273,46990.0,46979.0,0.01064]
[1649162409954,0.319273,46982.0,46979.0,0.01064]
[1649162410154,0.053202,46983.0,46976.0,0.01064]
[1649162410358,0.319273,46982.0,46976.0,0.01064]
[1649162410561,0.2366432,46981.0,46976.0,0.01064]
[1649162410760,0.319273,46979.0,46976.0,0.01064]
[1649162411156,0.039,46978.0,46971.0,0.00267783]
[1649162411247,0.619273,46977.0,46975.0,0.00132491]
[1649162411346,0.039,46978.0,46975.0,0.00132491]
[1649162411347,0.319273,46976.0,46975.0,0.00132491]
[1649162412197,0.319273,46976.0,46975.0,0.00090636]
[1649162412398,0.358273,46976.0,46975.0,0.00090636]
[1649162412703,0.039,46976.0,46975.0,0.00090636]
[1649162412799,0.658273,46976.0,46975.0,0.00090636]
[1649162413148,0.20820774,46976.0,46975.0,0.00090636]
[1649162413249,0.86150774,46976.0,46975.0,0.00090636]
[1649162413349,1.16150774,46976.0,46975.0,0.00090636]
[1649162413450,1.48049284,46976.0,46975.0,0.00090636]
[1649162413798,0.52719284,46976.0,46975.0,0.00090636]
[1649162413899,1.18049284,46976.0,46975.0,0.00090636]
[1649162414000,1.48049284,46976.0,46975.0,0.00090636]
[1649162414201,1.1553043,46972.0,46967.0,0.01065]
[1649162414301,0.3,46971.0,46967.0,0.01065]
[1649162414401,0.63139418,46971.0,46967.0,0.01065]
[1649162414754,0.6533,46970.0,46967.0,0.01065]
[1649162414883,0.6533,46969.0,46967.0,0.01065]
[1649162414984,0.039,46969.0,46967.0,0.01065]
[1649162415133,0.37416433,46969.0,46967.0,0.01065]
[1649162415234,0.27216738,46968.0,46967.0,0.01065]
[1649162415335,0.27216738,46968.0,46966.0,0.01]
[1649162415434,0.46853154,46967.0,46966.0,0.01]
[1649162415639,0.50753154,46967.0,46966.0,0.01]
[1649162415836,1.16083154,46967.0,46966.0,0.02065]
[1649162415989,0.039,46967.0,46966.0,0.02065]
[1649162416989,0.45450665,46967.0,46966.0,0.02065]
[1649162417091,0.039,46967.0,46966.0,0.02065]
[1649162417190,0.25133199,46967.0,46966.0,0.02065]
[1649162417289,0.49116478,46967.0,46966.0,0.02065]
[1649162417389,1.46373778,46967.0,46966.0,0.02065]
[1649162417586,0.81043778,46967.0,46966.0,0.02065]
[1649162417788,0.49116478,46967.0,46966.0,0.01]
[1649162417890,0.01,46966.0,46964.0,0.00060007]
[1649162417992,1.3319,46963.0,46929.0,0.212889]
[1649162418152,1.3319,46963.0,46926.0,0.11787207]
[1649162418161,1.0,46936.0,46926.0,0.11787207]
[1649162418204,0.3,46935.0,46927.0,0.026716]
[1649162418328,0.3,46935.0,46921.0,0.02634571]
[1649162418329,1.0,46932.0,46921.0,0.02634571]
[1649162418397,1.0,46931.0,46922.0,0.6393]
[1649162418493,1.0,46923.0,46919.0,0.00120192]
[1649162418690,0.03091091,46932.0,46918.0,0.00136912]
[1649162418691,0.98299,46920.0,46918.0,0.00136912]
[1649162418792,0.23091091,46932.0,46918.0,0.00136912]
[1649162418793,0.98299,46919.0,46918.0,0.00136912]
[1649162418885,0.98299,46919.0,46918.0,0.01202912]
[1649162418984,0.98299,46919.0,46918.0,0.26780341]
[1649162419086,0.96598,46919.0,46918.0,0.25714341]
[1649162419185,0.106561,46920.0,46918.0,0.25214341]
[1649162419296,0.106561,46920.0,46918.0,0.33447983]
[1649162419394,0.036,46922.0,46919.0,0.08233642]
[1649162419536,0.02199,46928.0,46918.0,0.36284347]
[1649162419684,0.039,46933.0,46918.0,0.36284347]
[1649162419886,0.039,46933.0,46931.0,0.23334322]
[1649162419985,0.5,46939.0,46919.0,0.3]
[1649162419986,0.039,46937.0,46919.0,0.3]
[1649162420134,0.039,46937.0,46931.0,0.28746401]
[1649162420332,0.039,46937.0,46919.0,0.3]
[1649162420535,0.039,46937.0,46919.0,0.32398139]
[1649162420637,0.61177491,46922.0,46919.0,0.32398139]
[1649162420736,0.61177491,46922.0,46921.0,0.00864814]
[1649162420833,0.34344436,46922.0,46921.0,0.00864814]
[1649162421032,0.23031399,46922.0,46921.0,0.28144444]
[1649162421134,0.23031399,46922.0,46921.0,0.33144444]
[1649162421232,0.23031399,46922.0,46921.0,0.38144444]
[1649162421337,0.06835432,46922.0,46921.0,0.4727963]
[1649162421437,0.06835432,46922.0,46921.0,0.48144214]
[1649162421550,0.06835432,46922.0,46921.0,0.47644214]
[1649162422235,0.06835432,46922.0,46921.0,0.73630842]
[1649162422409,0.01065,46941.0,46922.0,2.3]
[1649162422497,0.159736,46954.0,46928.0,0.45]
[1649162422594,0.5,46952.0,46933.0,0.2]
[1649162422695,0.01065,46951.0,46933.0,0.2]
[1649162422795,0.063875,46958.0,46934.0,0.039]
[1649162422996,0.053225,46958.0,46935.0,0.01065]
[1649162423097,0.01065,46957.0,46934.0,0.04973687]
[1649162423199,0.01065,46957.0,46936.0,0.039]
[1649162423298,0.31065,46957.0,46944.0,0.00057784]
[1649162423405,0.27874169,46950.0,46944.0,0.00057784]
[1649162423549,0.01065,46949.0,46944.0,0.00057784]
[1649162424299,0.01,46945.0,46932.0,1.60470376]
[1649162424499,0.0031,46951.0,46944.0,0.00057783]
[1649162424698,0.01065,46950.0,46944.0,0.00057783]
[1649162425451,0.01065,46950.0,46942.0,0.05]
[1649162425551,0.063889,46950.0,46942.0,0.05]
[1649162425705,0.063889,46950.0,46945.0,0.00057783]
[1649162426330,0.319294,46949.0,46945.0,0.00057783]
[1649162426433,0.59704938,46949.0,46945.0,0.00057783]
[1649162426531,0.01065,46948.0,46945.0,0.00057783]
[1649162426631,0.01065,46948.0,46938.0,0.00231166]
[1649162426733,0.01065,46948.0,46935.0,0.17397321]
[1649162426882,0.01065,46948.0,46945.0,0.00057059]
[1649162426987,0.01065,46950.0,46948.0,0.00272298]
[1649162427082,0.0031,46951.0,46948.0,0.00272298]
[1649162427781,0.0051,46951.0,46948.0,0.00272298]
[1649162427931,0.59570102,46949.0,46948.0,0.00272298]
[1649162428129,0.27640702,46949.0,46943.0,0.07226268]
[1649162428235,0.27640702,46949.0,46943.0,0.04829355]
[1649162428332,0.27640702,46949.0,46940.0,0.00228263]
[1649162428532,0.32965102,46949.0,46940.0,0.00228263]
[1649162428832,0.2,46948.0,46940.0,0.00228263]
[1649162429032,0.29480152,46941.0,46940.0,0.00228263]
[1649162429134,0.2,46948.0,46934.0,0.23070196]
[1649162429381,0.01,46935.0,46934.0,0.23070196]
[1649162429483,0.01,46935.0,46934.0,0.26544932]
[1649162429582,0.01,46935.0,46934.0,0.47544932]
[1649162429883,0.01,46935.0,46934.0,0.52544932]
[1649162429985,0.01,46935.0,46934.0,0.62544932]
[1649162430184,0.01,46935.0,46934.0,0.67544932]
[1649162430684,0.01,46935.0,46934.0,0.62544932]
[1649162430986,0.01,46935.0,46934.0,0.39474736]
[1649162431137,0.01,46935.0,46934.0,0.34474736]
[1649162431239,0.01,46935.0,46934.0,0.44474736]
[1649162431742,0.01,46935.0,46934.0,0.44394895]
[1649162432138,0.01,46935.0,46934.0,0.39394895]
[1649162432388,0.01,46935.0,46934.0,0.29394895]
[1649162432689,0.01,46935.0,46934.0,0.24474736]
[1649162432891,0.01,46935.0,46934.0,0.22077364]
[1649162432992,0.329294,46935.0,46934.0,0.21]
[1649162433831,0.6347692,46935.0,46934.0,0.21]
[1649162434080,0.62098873,46935.0,46934.0,0.21]
[1649162434982,0.94028273,46935.0,46934.0,0.21]
[1649162435636,1.14028273,46935.0,46934.0,0.21]
[1649162435934,1.44028273,46935.0,46934.0,0.21]
[1649162436888,1.54028273,46935.0,46934.0,0.21]
[1649162437037,0.06,46934.0,46917.0,0.01066]
[1649162437141,0.32505162,46925.0,46917.0,0.01066]
[1649162437241,0.3,46924.0,46917.0,0.01066]
[1649162437383,0.01,46918.0,46917.0,0.01066]
[1649162437784,0.01,46918.0,46914.0,0.01066]
[1649162437888,0.29567422,46918.0,46914.0,0.01066]
[1649162438035,0.01,46918.0,46913.0,1.74036418]
[1649162438341,0.01,46918.0,46913.0,0.02398445]
[1649162439038,0.01,46918.0,46909.0,0.08]
[1649162439240,0.2,46919.0,46909.0,0.39620507]
[1649162439337,0.28818498,46916.0,46909.0,0.08]
[1649162439493,0.28818498,46916.0,46910.0,0.01066]
[1649162439590,0.28818498,46916.0,46909.0,0.08]
[1649162440091,0.28818498,46916.0,46909.0,0.18]
[1649162440192,0.28818498,46916.0,46909.0,0.2039865]
[1649162440590,0.28818498,46916.0,46915.0,6.37e-05]
[1649162440900,0.2,46919.0,46910.0,0.2950637]
[1649162440999,0.01066,46921.0,46910.0,0.2950637]
[1649162441138,0.01066,46922.0,46910.0,0.2950637]
[1649162441539,0.01066,46922.0,46909.0,0.2139865]
[1649162441636,0.05,46916.0,46910.0,0.3]
[1649162441737,0.05,46916.0,46909.0,0.5139865]
[1649162441837,0.05,46916.0,46915.0,0.22813849]
[1649162441938,0.05,46916.0,46911.0,0.25478416]
[1649162442341,0.01,46912.0,46911.0,0.25478416]
[1649162442544,0.01,46912.0,46911.0,0.25537934]
[1649162442844,0.01,46912.0,46911.0,0.30537934]
[1649162442944,0.01,46912.0,46911.0,0.68771576]
[1649162443043,0.097564,46925.0,46912.0,0.5]
[1649162443144,0.390264,46928.0,46911.0,0.75537934]
[1649162443247,0.01065,46933.0,46916.0,0.08233642]
[1649162443345,0.01065,46933.0,46917.0,0.3]
[1649162443449,0.01065,46933.0,46921.0,0.01077559]
[1649162443559,0.2330606,46935.0,46926.0,0.30526572]
[1649162443646,0.01065,46937.0,46927.0,0.3]
[1649162443745,0.01065,46937.0,46927.0,0.339]
[1649162443844,0.01065,46937.0,46931.0,0.25005328]
[1649162443945,0.097564,46938.0,46931.0,0.27402853]
[1649162444195,0.097564,46938.0,46931.0,0.02397525]
[1649162444905,0.097564,46938.0,46928.0,0.3]
[1649162445001,0.097564,46938.0,46932.0,0.00057318]
[1649162445102,0.01065,46937.0,46932.0,0.00057318]
[1649162445200,0.097564,46938.0,46932.0,0.00057318]
[1649162445350,0.24590981,46936.0,46932.0,0.00057318]
[1649162445499,0.01065,46937.0,46932.0,0.00057318]
[1649162445701,0.01065,46943.0,46932.0,0.00057318]
[1649162445800,0.036614,46938.0,46932.0,0.00057318]
[1649162445903,0.01065,46937.0,46932.0,0.00057318]
[1649162446003,0.01065,46937.0,46929.0,0.02397628]
[1649162446104,0.01065,46937.0,46935.0,0.00057315]
[1649162446201,0.036614,46938.0,46935.0,0.00057315]
[1649162446555,0.00114629,46933.0,46931.0,0.3]
[1649162446650,0.00114629,46933.0,46930.0,0.25071475]
[1649162447352,0.01,46931.0,46930.0,0.25071475]
[1649162447453,0.01,46931.0,46930.0,0.30071475]
[1649162447657,0.01,46931.0,46930.0,0.75048781]
[1649162448307,0.01,46931.0,46930.0,0.96921718]
[1649162448515,0.01,46931.0,46930.0,1.13260318]
[1649162448740,0.01,46931.0,46930.0,0.91387381]
[1649162448839,0.01,46931.0,46930.0,0.75048781]
[1649162449740,0.01,46931.0,46930.0,0.45048781]
[1649162450738,0.01,46931.0,46930.0,0.45054892]
[1649162450940,0.01,46931.0,46930.0,0.46054892]
[1649162451342,0.01,46931.0,46930.0,0.20983417]
[1649162451546,0.01,46931.0,46930.0,0.06006111]
[1649162451641,0.01,46931.0,46930.0,0.01006111]
[1649162451992,0.30678521,46931.0,46930.0,0.01006111]
[1649162453336,0.29928521,46931.0,46930.0,0.01006111]
[1649162453537,0.33589921,46931.0,46930.0,0.01006111]
[1649162454943,0.95519321,46931.0,46930.0,0.01006111]
[1649162455543,1.36742791,46931.0,46930.0,0.01006111]
[1649162455646,1.06742791,46931.0,46930.0,0.01006111]
[1649162455843,1.06175081,46931.0,46930.0,0.01006111]
[1649162456285,0.64951611,46931.0,46930.0,0.01006111]
[1649162456686,0.33022211,46931.0,46930.0,0.01006111]
[1649162456783,0.64951611,46931.0,46930.0,0.01006111]
[1649162456885,0.29360811,46931.0,46930.0,0.01006111]
[1649162457282,0.64951611,46931.0,46930.0,0.01006111]
[1649162457533,1.31906713,46931.0,46930.0,0.01006111]
[1649162458184,1.37233913,46931.0,46930.0,0.01006111]
[1649162458285,1.7081206,46931.0,46930.0,0.01006111]
[1649162458534,1.87996674,46931.0,46930.0,0.01006111]
[1649162459337,2.19926074,46931.0,46930.0,0.01006111]
[1649162459539,2.50003365,46931.0,46930.0,0.01006111]
[1649162460095,2.30003365,46931.0,46930.0,0.01006111]
[1649162460194,2.50003365,46931.0,46930.0,0.01006111]
[1649162460602,2.03203102,46931.0,46930.0,1.11e-06]
[1649162460698,2.08168102,46931.0,46921.0,0.00242989]
[1649162460850,0.6533,46927.0,46921.0,0.00242989]
[1649162460949,0.6533,46925.0,46921.0,0.00242989]
[1649162461047,0.689914,46922.0,46921.0,0.00242989]
[1649162461205,0.355908,46922.0,46921.0,0.00242989]
[1649162461298,0.655908,46922.0,46921.0,0.00242989]
[1649162461401,0.355908,46922.0,46921.0,0.00242989]
[1649162461599,0.92851242,46922.0,46911.0,0.00140442]
[1649162461698,0.036614,46915.0,46911.0,0.00140442]
[1649162461800,0.036614,46915.0,46909.0,0.08]
[1649162461801,0.372585,46912.0,46909.0,0.08]
[1649162461900,0.355908,46910.0,46909.0,0.08]
[1649162462599,0.365908,46910.0,46909.0,0.08]
[1649162462699,0.63117678,46910.0,46909.0,0.08]
[1649162463002,0.046614,46910.0,46909.0,0.08]
[1649162463353,0.01,46910.0,46909.0,0.08]
[1649162463787,0.046614,46910.0,46909.0,0.08]
[1649162463992,0.01,46910.0,46909.0,0.08]
[1649162464185,0.329294,46910.0,46909.0,0.08]
[1649162464834,0.329294,46910.0,46909.0,0.075]
[1649162465039,0.329294,46910.0,46909.0,0.07506055]
[1649162465186,0.60729181,46910.0,46909.0,0.07506055]
[1649162465790,0.90729181,46910.0,46909.0,0.07506055]
[1649162466139,1.56059181,46910.0,46909.0,0.07506055]
[1649162466338,1.27198913,46910.0,46909.0,0.07506055]
[1649162467733,0.60729181,46910.0,46909.0,0.07506055]
[1649162467833,0.61795181,46910.0,46909.0,0.07506055]
[1649162468282,0.61795181,46910.0,46909.0,0.08506055]
[1649162468684,0.96705332,46910.0,46909.0,0.08506055]
[1649162468885,1.92035332,46910.0,46909.0,0.08506055]
[1649162469034,1.62035332,46910.0,46909.0,0.08506055]
[1649162469233,1.72035332,46910.0,46909.0,0.08506055]
[1649162469336,1.77035332,46910.0,46909.0,0.08506055]
[1649162469689,0.6533,46908.0,46906.0,0.0274]
[1649162469789,0.319294,46907.0,46906.0,0.0274]
[1649162469889,0.655908,46907.0,46906.0,0.0274]
[1649162470337,0.655908,46907.0,46901.0,0.002]
[1649162470338,1.309208,46907.0,46901.0,0.002]
[1649162470442,0.036614,46902.0,46901.0,0.001]
[1649162470542,0.036614,46902.0,46881.0,0.00041962]
[1649162470543,0.19647311,46900.0,46881.0,0.00142452]
[1649162470649,0.28293,46899.0,46881.0,0.00142452]
[1649162470745,0.51386029,46899.0,46865.0,0.00040055]
[1649162470842,0.49679029,46899.0,46866.0,0.74]
[1649162470955,0.3,46898.0,46873.0,0.30393186]
[1649162471043,0.01066,46897.0,46874.0,0.01067]
[1649162471155,0.28423217,46899.0,46877.0,0.106601]
[1649162471241,2.28293,46897.0,46877.0,0.017271]
[1649162471341,0.26648531,46896.0,46887.0,0.24293999]
[1649162471446,0.31066,46896.0,46877.0,0.017271]
[1649162471550,0.30687,46896.0,46881.0,0.00083924]
[1649162471651,0.22485015,46886.0,46881.0,0.00083924]
[1649162471740,0.21763015,46886.0,46881.0,0.00083924]
[1649162471942,1.33727,46896.0,46881.0,0.00083924]
[1649162472244,1.04106,46896.0,46881.0,0.00083924]
[1649162472344,1.03925,46896.0,46881.0,0.00083924]
[1649162472445,0.26171923,46893.0,46884.0,0.22089144]
[1649162472544,2.28293,46897.0,46884.0,0.22231587]
[1649162472643,2.28203,46897.0,46886.0,0.00060666]
[1649162472746,2.28158,46897.0,46886.0,0.00060666]
[1649162473046,0.28753368,46891.0,46886.0,0.00060666]
[1649162473646,0.28753368,46891.0,46883.0,6.383e-05]
[1649162473847,0.28753368,46891.0,46886.0,0.00060666]
[1649162474153,0.34083868,46891.0,46886.0,0.00060666]
[1649162474549,0.28753368,46891.0,46886.0,0.00060666]
[1649162474697,0.3,46896.0,46888.0,6.354e-05]
[1649162474797,0.01066,46898.0,46888.0,6.354e-05]
[1649162475045,0.7824,46912.0,46888.0,6.354e-05]
[1649162475143,0.2,46916.0,46896.0,0.26122075]
[1649162475144,0.23632644,46906.0,46896.0,0.26122075]